Workbook

Sheet WDI_Standard_Order_Form
A1: WDI Company - Window Box Order Form | H1: WDI (651) 464-6190 Fax: (651) 464-6191 | N1: Both: | O1: =IF(+L5<1,+CONCATENATE("#",C5," ",I4,+" PO#",+C3," ",+C2," - ",+I5," Bx in Color #", +M9," - Due: ",+AF5), +CONCATENATE("#",+C5," ",+I4,+" PO#",+C3," ",+C2," - ",+I5," Bx in Color #",+M9," + ",+L5," Parts - Due: ",+AF5)) -> #- PO# - - Bx in Color # + - Parts - Due: - | Q1: WDI Company | X1: *Email this Excel order form to orders email below | AL1: Error Codes ---> | BA1: Other logic faults -->
B2: Job Name: | H2: Order Date: | I2: ="-" -> - | N2: Box: | O2: =IF(+L5<1,+CONCATENATE("#",C5," ",I4,+" PO#",+C3," ",+C2," - ",+I5," Bx in Color #", +M9," - Due: ",+AF5), +CONCATENATE("#",+C5," ",+I4,+" PO#",+C3," ",+C2," - ",+I5," Bx in Color #",+M9," + ",+AF5)) -> #- PO# - - Bx in Color # + - | Q2: Main: | R2: 651.464.6190 | S2: Email: | T2: orders@thewoodster.com | AE2: Price Deck: | AF2: w | AG2: Formulas include casing width, stop size | AM2: 1.0 | AN2: 2.0 | AO2: 3.0 | AP2: 3.1 | AQ2: 3.2 | AR2: 4.0 | AS2: 5.0 | AT2: 7.0 | AU2: 8.0 | AV2: 9.0 | AW2: 10.0 | AX2: 11.0 | AY2: 12.0 | AZ2: 13.0 | BA2: 14.0 | BB2: 15.0 | BC2: 16.0 | BD2: 17.0 | BE2: 18.0
B3: PO #: | H3: WDI Ship Date: | I3: ="-" -> - | M3: =IF(I3-I2<14,"Short lead time, Rush charges may apply",IF(I3-I2>30,"Ship date is >30 days","")) ->  | N3: Parts: | O3: =IF(+L5<1,+CONCATENATE("#",C5," ",I4,+" PO#",+C3," ",+C2," - "," - Due: ",+AF5), +CONCATENATE("#",+C5," ",+I4,+" PO#",+C3," ",+C2," - ",+M9," + ",+SUM(B21:B24)," Millwork Parts - Due: ",+AF5)) -> #- PO# - + 0 Millwork Parts - Due: - | Q3: Orders Ext: | R3: 109 | S3: Website: | T3: www.wdi-windowtrimkits.com | AE3: Scaler: | AF3: 0.50 | AG3: white premium, CRI vs WDI Pricing | BI3: Errors
B4: Ordered By: | H4: WDI Customer Name: | Q4: Accounting Ext: | R4: 108 | S4: Video: | T4: http://www.wdicustomwood.com/building-products | AI4: CALCS | AM4: *Box width too small/large | AN4: *Box height too small/large | AO4: *Opening Type Error | AP4: *Dim A & No stool selected | AQ4: *Dim B & No stool selected | AR4: *Jamb Species not stock | AS4: *Jamb depth too small/large | AT4: *Casing Profile not stock | AU4: *Casing width not stock | AW4: *Stop/Mull Profile not stock | AX4: *Stop width too small/large | AY4: *Not a stock color | AZ4: *Notes Err | BA4: *White on Oak | BC4: *Stop is wider than jamb | BI4: =+AM4 -> *Box width too small/large | BJ4: =+AN4 -> *Box height too small/large | BK4: =+AO4 -> *Opening Type Error | BL4: *Dim A & No stool selected | BM4: *Dim B & No stool selected | BN4: =+AR4 -> *Jamb Species not stock | BO4: =+AS4 -> *Jamb depth too small/large | BP4: =+AT4 -> *Casing Profile not stock | BQ4: *Casing width not stock | BR4: 0 | BS4: *Stop/Mull Profile not stock | BT4: *Stop width too small/large | BU4: *Not a stock color | BV4: =+AZ4 -> *Notes Err | BW4: *White on Oak | BX4: 0 | BY4: *Stop is wider than jamb | BZ4: 0 | CA4: 0 | CC4: string errors | CF4: Line Count check | CH4: Weight Calcs -->
B5: WDI Job # | C5: ="-" -> - | H5: # Window Line Items: | I5: - | K5: # Parts Line Items: | L5: - | M5: Total Items: | N5: - | O5: =IF(+I5+L5<>+N5,"Error - Line Count Off !!","") ->  | AE5: Due: | AF5: =TEXT(I3,"MM/DD") -> - | CK5: Weights --> | CN5: Total
B6: Jamb Box Size (O.D.) | D6: Opening Type | E6: Stools | G6: Species | H6: Jamb Depth | I6: Casing Profile # | J6: Casing | K6: Stop/Mull (WDST-numbers) | L6: Stop/Mull | M6: Window | N6: Notes | O6: Order messages & errors | Q6: Window | R6: Jamb + Casing Cost | S6: + Stop Cost | T6: Other | U6: Other | V6: Other | W6: Other | X6: Total | AH6: Casing | AI6: Casing Profile # | AM6: Box Size (O.D.) | AO6: Opening Type | AP6: Stools | AR6: Jamb | AS6: Jamb Depth | AT6: Casing Profile # | AU6: Casing | AW6: Stop/Mull (WDST-numbers) | AX6: Stop/Mull | AY6: Window | AZ6: Notes | BB6: Open 7/11/14 | BI6: Box Size (O.D.) | BK6: Opening Type | BL6: Stools | BN6: Jamb | BO6: Jamb Depth | BP6: Casing Profile # | BQ6: Casing | BS6: Stop/Mull (WDST #....) | BT6: Stop/Mull | BU6: Window | BV6: Notes | CH6: UI | CI6: lft | CJ6: Jamb Width | CK6: Casing #/Lft | CL6: Stop #/lft | CM6: 1" Jamb #/lft | CN6: Weight | CO6: Jamb? | CP6: Casing ? | CQ6: Stop?
A7: # | B7: Width | C7: Height | E7: Dim A | F7: Dim B | G7: Species (Oak, Maple, Poplar) | H7: From inside of Window | I7: (WDI #113, #115, #118) | J7: Width (2.25", 2.5", 3.25") | K7: Stock Profiles #006, 007, 009, 011 * | L7: Width (Standard = 1.25") | M7: Color # (from color chips dated 2019 or newer) | N7: Descriptions | Q7: Pricing Length (Inches) | R7: sub-cost | S7: sub-cost | T7: Items & Charges | U7: Items & Charges | V7: Items & Charges | W7: Items & Charges | X7: Total Cost | AA7: Weight (lbs) | AH7: Width (2.25", 2.5", 3.25") | AI7: Revised Casing Name | AM7: Width | AN7: Height | AP7: Dim A | AQ7: Dim B | AR7: Species (Oak, Maple, Poplar) | AS7: From inside of Window | AT7: (WDI #113, #115, #118, etc.) | AU7: Width (2.25", 2.5", 3.25") | AW7: Stock Profiles #006, 007, 009, 011 | AX7: Width (Standard = 1.25") | AY7: Color | AZ7: Descriptions | BA7: White on Oak check | BC7: Stop wider than jamb | BG7: SUM | BI7: Width | BJ7: Height | BL7: Dim A | BM7: Dim B | BN7: Species (Oak, Maple, Poplar) | BO7: From inside of Window | BP7: (WDI #113, #115, #118, etc.) | BQ7: Width (2.25, 3.25, 5.0") | BS7: Profile #004, 006, 007, 008, 009, 011) | BT7: Width (Standard = 1.25") | BU7: Color | BV7: Descriptions | CC7: <-- ERROR MESSAGES --> | CK7: 0.42 | CL7: 0.15 | CM7: 0.23
A8: 1 | B8: 2 | C8: 3 | G8: 4 | H8: 5 | I8: 6 | J8: 8 | K8: 9 | M8: 10 | N8: 11 | P8: 12 | Q8: 13 | R8: 14 | W8: 16 | X8: 17 | AA8: 16 | AC8: 19 | AD8: 20 | AH8: 8 | AI8: 6
A9: 1 | D9: W | L9: =IF(K9="","",IF(K9="006",IF(H9>2,1.25,1), IF(K9="007",2, IF(K9="009",0.75, IF(K9="011",1.25,IF(K9="001",0.75,0.754)))))) ->  | O9: =+CC9 -> - Invalid Line - | Q9: =SUM(B9:C9) -> 0 | X9: =SUM(R9:W9) -> 0 | AA9: =+CN9 -> 0 | AH9: =IF(J9=2.25,"R ",IF(J9=2.5,"W ",IF(J9=3.25,"EW",""))) ->  | AI9: =+CONCATENATE(I9,AH9) ->  | AL9: =IF(D9="W",1,IF(D9="S",1,IF(D9="D",1,IF(D9="H",1,IF(D9="O",1,IF(D9="C",1,"Error**")))))) -> 1 | AM9: =IF(B9<10,IF(B9>96,10,0),0) -> 0 | AN9: =IF(C9<10,IF(C9>96,20,0),0) -> 0 | AO9: =IF(D9="W",0,IF(D9="S",0,IF(D9="D",0,IF(D9="H",0,IF(D9="O",0,IF(D9="C",0,30)))))) -> 0 | AP9: =IF(D9<>"S",IF(E9<>0,31,0),0) -> 0 | AQ9: =IF(D9<>"S",IF(F9<>0,31,0),0) -> 0 | AR9: =IF(G9="Oak",0,IF(G9="Maple",0,IF(G9="Poplar",0,40))) -> 40 | AS9: =IF(B9<>0,IF(H9<1,50, IF(H9>6.5,51,0)),0) -> 0 | AT9: =IF(I9=113,0,IF(I9=115,0,IF(I9=118,0,70))) -> 70 | AU9: =IF(J9=2.25,0,IF(J9=2.5,0,IF(J9=3.25,0,80))) -> 80 | AW9: =IF(K9="006",0,IF(K9="007",0,IF(K9="009",0,IF(K9="011",0,IF(K9="001",0,100))))) -> 100 | AX9: =IF(L9<0.5,IF(L9>3,110,0),0) -> 0 | AY9: =IF(M9>=50,IF(M9<=76,0,IF(M9=30,0,121)),120) -> 120 | BA9: =IF(M9=75,IF(G9="Oak",150,0),0) -> 0 | BC9: =IF(L9>H9,160,0) -> 0 | BG9: =SUM(AM9:BF9) -> 410 | BI9: =IF(AM9=0,"",+AM$4) ->  | BJ9: =IF(AN9=0,"",+AN$4) ->  | BK9: =IF(AO9=0,"",+AO$4) ->  | BL9: =IF(AP9=0,"",+AP$4) ->  | BM9: =IF(AQ9=0,"",+AQ$4) ->  | BN9: =IF(AR9=0,"",+AR$4) -> *Jamb Species not stock | BO9: =IF(AS9=0,"",+AS$4) ->  | BP9: =IF(AT9=0,"",+AT$4) -> *Casing Profile not stock | BQ9: =IF(AU9=0,"",+AU$4) -> *Casing width not stock | BR9: =IF(AV9=0,"",+AV$4) ->  | BS9: =IF(AW9=0,"",+AW$4) -> *Stop/Mull Profile not stock | BT9: =IF(AX9=0,"",+AX$4) ->  | BU9: =IF(AY9=0,"",+AY$4) -> *Not a stock color | BV9: =IF(AZ9=0,"",+AZ$4) ->  | BW9: =IF(BA9=0,"",+BA$4) ->  | BX9: =IF(BB9=0,"",+BB$4) ->  | BY9: =IF(BC9=0,"",+BC$4) ->  | BZ9: =IF(BD9=0,"",+BD$4) ->  | CA9: =IF(BE9=0,"",+BE$4) ->  | CC9: =IF(B9<>"",+CONCATENATE(BI9,BJ9,BK9,BL9,BM9,BN9,BO9,BP9,BQ9,BS9,BT9,BU9,BV9,BW9,BX9,BY9,BZ9,CA9),"- Invalid Line -") -> - Invalid Line - | CH9: =+Q9 -> 0 | CI9: =+CH9*2/12 -> 0 | CJ9: =+E9+H9 -> 0 | CK9: =IF(CP9<>0,+CI9*$CK$7,0) -> 0 | CL9: =IF(CQ9<>0,+CI9*$CL$7,0) -> 0 | CM9: =+CI9*CJ9*$CM$7 -> 0 | CN9: =SUM(CK9:CM9) -> 0 | CO9: =+H9 -> 0 | CP9: =+J9 -> 0 | CQ9: =+L9 ->  | CS9: =+AT9 -> 70
A10: 2 | D10: W | L10: =IF(K10="","",IF(K10="006",IF(H10>2,1.25,1), IF(K10="007",2, IF(K10="009",0.75, IF(K10="011",1.25,IF(K10="001",0.75,0.754)))))) ->  | M10: =IF(M9="","",+M9) ->  | O10: - Invalid Line - | Q10: =SUM(B10:C10) -> 0 | X10: =SUM(R10:W10) -> 0 | AA10: =+CN10 -> 0 | AL10: 1 | AM10: 0 | AN10: 0 | AO10: 0 | AP10: 0 | AQ10: 0 | AR10: 40 | AS10: 0 | AT10: 70 | AU10: 80 | AW10: 100 | AX10: 0 | AY10: =IF(M10>=50,IF(M10<=76,0,IF(M10=30,0,121)),120) -> 121 | BA10: =IF(M10=75,IF(G10="Oak",150,0),0) -> 0 | BC10: 0 | BG10: =SUM(AM10:BF10) -> 411 | BI10: =IF(AM10=0,"",+AM$4) ->  | BN10: *Jamb Species not stock | BP10: *Casing Profile not stock | BQ10: *Casing width not stock | BS10: *Stop/Mull Profile not stock | BU10: *Not a stock color | CC10: - Invalid Line - | CH10: 0 | CI10: =+CH10*2/12 -> 0 | CJ10: 0 | CK10: =IF(CP10<>0,+CI10*$CK$7,0) -> 0 | CL10: =IF(CQ10<>0,+CI10*$CL$7,0) -> 0 | CM10: =+CI10*CJ10*$CM$7 -> 0 | CN10: =SUM(CK10:CM10) -> 0 | CO10: 0 | CP10: =+J10 -> 0 | CQ10: =+L10 -> 
A11: 3 | D11: W | O11: - Invalid Line - | Q11: 0 | X11: 0 | AA11: 0 | AL11: 1 | AM11: 0 | AN11: 0 | AO11: 0 | AP11: 0 | AQ11: 0 | AR11: 40 | AS11: 0 | AT11: 70 | AU11: 80 | AW11: 100 | AX11: 0 | AY11: 121 | BA11: 0 | BC11: 0 | BG11: 411 | BN11: *Jamb Species not stock | BP11: *Casing Profile not stock | BQ11: *Casing width not stock | BS11: *Stop/Mull Profile not stock | BU11: *Not a stock color | CC11: - Invalid Line - | CH11: 0 | CI11: 0 | CJ11: 0 | CK11: 0 | CL11: 0 | CM11: 0 | CN11: 0 | CO11: 0 | CP11: 0
A12: 4 | D12: W | O12: - Invalid Line - | Q12: 0 | X12: 0 | AA12: 0 | AL12: 1 | AM12: 0 | AN12: 0 | AO12: 0 | AP12: 0 | AQ12: 0 | AR12: 40 | AS12: 0 | AT12: 70 | AU12: 80 | AW12: 100 | AX12: 0 | AY12: 121 | BA12: 0 | BC12: 0 | BG12: 411 | BN12: *Jamb Species not stock | BP12: *Casing Profile not stock | BQ12: *Casing width not stock | BS12: *Stop/Mull Profile not stock | BU12: *Not a stock color | CC12: - Invalid Line - | CH12: 0 | CI12: 0 | CJ12: 0 | CK12: 0 | CL12: 0 | CM12: 0 | CN12: 0 | CO12: 0 | CP12: 0
A13: 5 | D13: W | O13: - Invalid Line - | Q13: 0 | X13: 0 | AA13: 0 | AL13: 1 | AM13: 0 | AN13: 0 | AO13: 0 | AP13: 0 | AQ13: 0 | AR13: 40 | AS13: 0 | AT13: 70 | AU13: 80 | AW13: 100 | AX13: 0 | AY13: 121 | BA13: 0 | BC13: 0 | BG13: 411 | BN13: *Jamb Species not stock | BP13: *Casing Profile not stock | BQ13: *Casing width not stock | BS13: *Stop/Mull Profile not stock | BU13: *Not a stock color | CC13: - Invalid Line - | CH13: 0 | CI13: 0 | CJ13: 0 | CK13: 0 | CL13: 0 | CM13: 0 | CN13: 0 | CO13: 0 | CP13: 0
A14: 6 | D14: W | O14: - Invalid Line - | Q14: 0 | X14: 0 | AA14: 0 | AL14: 1 | AM14: 0 | AN14: 0 | AO14: 0 | AP14: 0 | AQ14: 0 | AR14: 40 | AS14: 0 | AT14: 70 | AU14: 80 | AW14: 100 | AX14: 0 | AY14: 121 | BA14: 0 | BC14: 0 | BG14: 411 | BN14: *Jamb Species not stock | BP14: *Casing Profile not stock | BQ14: *Casing width not stock | BS14: *Stop/Mull Profile not stock | BU14: *Not a stock color | CC14: - Invalid Line - | CH14: 0 | CI14: 0 | CJ14: 0 | CK14: 0 | CL14: 0 | CM14: 0 | CN14: 0 | CO14: 0 | CP14: 0
A15: 7 | D15: W | O15: - Invalid Line - | Q15: 0 | X15: 0 | AA15: 0 | AL15: 1 | AM15: 0 | AN15: 0 | AO15: 0 | AP15: 0 | AQ15: 0 | AR15: 40 | AS15: 0 | AT15: 70 | AU15: 80 | AW15: 100 | AX15: 0 | AY15: 121 | BA15: 0 | BC15: 0 | BG15: 411 | BN15: *Jamb Species not stock | BP15: *Casing Profile not stock | BQ15: *Casing width not stock | BS15: *Stop/Mull Profile not stock | BU15: *Not a stock color | CC15: - Invalid Line - | CH15: 0 | CI15: 0 | CJ15: 0 | CK15: 0 | CL15: 0 | CM15: 0 | CN15: 0 | CO15: 0 | CP15: 0
A16: 8 | D16: W | M16: =IF(M15="","",+M15) ->  | O16: - Invalid Line - | Q16: 0 | X16: 0 | AA16: 0 | AL16: 1 | AM16: 0 | AN16: 0 | AO16: 0 | AP16: 0 | AQ16: 0 | AR16: 40 | AS16: 0 | AT16: 70 | AU16: 80 | AW16: 100 | AX16: 0 | AY16: 121 | BA16: 0 | BC16: 0 | BG16: 411 | BN16: *Jamb Species not stock | BP16: *Casing Profile not stock | BQ16: *Casing width not stock | BS16: *Stop/Mull Profile not stock | BU16: *Not a stock color | CC16: - Invalid Line - | CH16: 0 | CI16: 0 | CJ16: 0 | CK16: 0 | CL16: 0 | CM16: 0 | CN16: 0 | CO16: 0 | CP16: 0
A17: 9 | D17: W | M17: =IF(M16="","",+M16) ->  | O17: - Invalid Line - | Q17: 0 | X17: 0 | AA17: 0 | AL17: 1 | AM17: 0 | AN17: 0 | AO17: 0 | AP17: 0 | AQ17: 0 | AR17: 40 | AS17: 0 | AT17: 70 | AU17: 80 | AW17: 100 | AX17: 0 | AY17: 121 | BA17: 0 | BC17: 0 | BG17: 411 | BN17: *Jamb Species not stock | BP17: *Casing Profile not stock | BQ17: *Casing width not stock | BS17: *Stop/Mull Profile not stock | BU17: *Not a stock color | CC17: - Invalid Line - | CH17: 0 | CI17: 0 | CJ17: 0 | CK17: 0 | CL17: 0 | CM17: 0 | CN17: 0 | CO17: 0 | CP17: 0
A18: 10 | D18: W | M18: =IF(M17="","",+M17) ->  | O18: - Invalid Line - | Q18: 0 | X18: 0 | AA18: 0 | AL18: 1 | AM18: 0 | AN18: 0 | AO18: 0 | AP18: 0 | AQ18: 0 | AR18: 40 | AS18: 0 | AT18: 70 | AU18: 80 | AW18: 100 | AX18: 0 | AY18: 121 | BA18: 0 | BC18: 0 | BG18: 411 | BN18: *Jamb Species not stock | BP18: *Casing Profile not stock | BQ18: *Casing width not stock | BS18: *Stop/Mull Profile not stock | BU18: *Not a stock color | CC18: - Invalid Line - | CH18: 0 | CI18: 0 | CJ18: 0 | CK18: 0 | CL18: 0 | CM18: 0 | CN18: 0 | CO18: 0 | CP18: 0
A19: 11 | D19: W | M19: =IF(M18="","",+M18) ->  | O19: - Invalid Line - | Q19: 0 | X19: 0 | AA19: 0 | AL19: 1 | AM19: 0 | AN19: 0 | AO19: 0 | AP19: 0 | AQ19: 0 | AR19: 40 | AS19: 0 | AT19: 70 | AU19: 80 | AW19: 100 | AX19: 0 | AY19: 121 | BA19: 0 | BC19: 0 | BG19: 411 | BN19: *Jamb Species not stock | BP19: *Casing Profile not stock | BQ19: *Casing width not stock | BS19: *Stop/Mull Profile not stock | BU19: *Not a stock color | CC19: - Invalid Line - | CH19: 0 | CI19: 0 | CJ19: 0 | CK19: 0 | CL19: 0 | CM19: 0 | CN19: 0 | CO19: 0 | CP19: 0
B20: Amount | C20: Length (Inches) | G20: Species | H20: Jamb | I20: Cas. Prof. | J20: Cas. Width | K20: Misc profile | L20: Misc. Wid. | M20: Color # | N20: Last 4 lines for Parts | Q20: Length (lft) | AA20: 0
A21: 1 | D21: P | L21: =IF(K21="","",IF(OR(K21="006",K21="WDST-006"),1.25, IF(OR(K21="007",K21="WDST-007"),2,IF(OR(K21="012",K21="WDST-012"),3,IF(OR(K21="009",K21="WDST-009"),0.75, IF(OR(K21="011",K21="WDST-011"),1.25,IF(OR(K21="001",K21="WDSH-001"),0.75,IF(OR(K21="002",K21="WDSH-002"),0.75,IF(K21="WDBB-001",1,IF(OR(K21="022",K21="WDBC-022"),0.9875,IF(OR(K21="007",K21="CC-007"),1.125,IF(K21="COVE",0.75,"*error-check code*")))))))))))) ->  | M21: =+M19 ->  | O21: =+BZ21 ->  | Q21: =+B21*C21/12 -> 0 | X21: =SUM(R21:W21) -> 0 | AA21: 0 | AH21: =IF(J21=2.25,"R ",IF(J21=2.5,"W ",IF(J21=3.25,"EW",""))) ->  | AI21: =+CONCATENATE(I21,AH21) ->  | AL21: =IF(D21="P",1,"Error") -> 1 | AR21: =IF(G21="Oak",0,IF(G21="Maple",0,IF(G21="Poplar",0,40))) -> 40 | AS21: =IF(B21<>0,IF(H21=0,0,IF(H21<1,50, IF(H21>6.5,51,0))),0) -> 0 | AT21: =IF(I21=113,0,IF(I21=115,0,IF(I21=118,0,IF(I21="",0,70)))) -> 0 | AU21: =IF(I21=0,0,IF(J21=2.25,0,IF(J21=2.5,0,IF(J21=3.25,0,80)))) -> 0 | AW21: =IF(K21=0,0,IF(K21="006",0,IF(K21="007",0,IF(K21="009",0,IF(K21="011",0,IF(K21="001",0,100)))))) -> 0 | AY21: 121 | BA21: 0 | BG21: 161 | BN21: *Jamb Species not stock | BU21: *Not a stock color | BV21: =IF(AZ21=0,"",+AZ$4) ->  | CC21: =IF(B21<>"",+CONCATENATE(BI21,BJ21,BK21,BL21,BM21,BN21,BO21,BP21,BQ21,BS21,BT21,BU21,BV21,BW21,BX21,BY21,BZ21,CA21),"- Invalid Line -") -> - Invalid Line - | CI21: =+Q21 -> 0 | CJ21: =+E21+H21 -> 0 | CK21: =IF(CP21<>0,+CI21*$CK$7,0) -> 0 | CL21: =IF(CQ21<>0,+CI21*$CL$7,0) -> 0 | CM21: =+CI21*CJ21*$CM$7 -> 0 | CN21: =SUM(CK21:CM21) -> 0 | CP21: =+J21 -> 0
A22: 2 | D22: P | L22: =IF(K22="","",IF(OR(K22="006",K22="WDST-006"),1.25, IF(OR(K22="007",K22="WDST-007"),2,IF(OR(K22="012",K22="WDST-012"),3,IF(OR(K22="009",K22="WDST-009"),0.75, IF(OR(K22="011",K22="WDST-011"),1.25,IF(OR(K22="001",K22="WDSH-001"),0.75,IF(OR(K22="002",K22="WDSH-002"),0.75,IF(K22="WDBB-001",1,IF(OR(K22="022",K22="WDBC-022"),0.9875,IF(OR(K22="007",K22="CC-007"),1.125,IF(K22="COVE",0.75,"*error-check code*")))))))))))) ->  | M22: =IF(M21="","",+M21) ->  | O22: =+BZ22 ->  | Q22: =+B22*C22/12 -> 0 | X22: =SUM(R22:W22) -> 0 | AA22: 0 | AH22: =IF(J22=2.25,"R ",IF(J22=2.5,"W ",IF(J22=3.25,"EW",""))) ->  | AI22: =+CONCATENATE(I22,AH22) ->  | AL22: =IF(D22="P",1,"Error") -> 1 | AR22: =IF(G22="Oak",0,IF(G22="Maple",0,IF(G22="Poplar",0,40))) -> 40 | AS22: =IF(B22<>0,IF(H22=0,0,IF(H22<1,50, IF(H22>6.5,51,0))),0) -> 0 | AT22: =IF(I22=113,0,IF(I22=115,0,IF(I22=118,0,IF(I22="",0,70)))) -> 0 | AU22: =IF(I22=0,0,IF(J22=2.25,0,IF(J22=2.5,0,IF(J22=3.25,0,80)))) -> 0 | AW22: =IF(K22=0,0,IF(K22="006",0,IF(K22="007",0,IF(K22="009",0,IF(K22="011",0,IF(K22="001",0,100)))))) -> 0 | AY22: 121 | BA22: 0 | BG22: 161 | BN22: *Jamb Species not stock | BU22: *Not a stock color | CC22: =IF(B22<>"",+CONCATENATE(BI22,BJ22,BK22,BL22,BM22,BN22,BO22,BP22,BQ22,BS22,BT22,BU22,BV22,BW22,BX22,BY22,BZ22,CA22),"- Invalid Line -") -> - Invalid Line - | CI22: =+Q22 -> 0 | CJ22: =+E22+H22 -> 0 | CK22: 0 | CL22: =IF(CQ22<>0,+CI22*$CL$7,0) -> 0 | CM22: 0 | CN22: 0 | CP22: 0
A23: 3 | D23: P | M23: =IF(M22="","",+M22) ->  | O23: =+BZ23 ->  | Q23: =+B23*C23/12 -> 0 | X23: =SUM(R23:W23) -> 0 | AA23: 0 | AH23: =IF(J23=2.25,"R ",IF(J23=2.5,"W ",IF(J23=3.25,"EW",""))) ->  | AI23: =+CONCATENATE(I23,AH23) ->  | AL23: =IF(D23="P",1,"Error") -> 1 | AR23: =IF(G23="Oak",0,IF(G23="Maple",0,IF(G23="Poplar",0,40))) -> 40 | AS23: =IF(B23<>0,IF(H23=0,0,IF(H23<1,50, IF(H23>6.5,51,0))),0) -> 0 | AT23: =IF(I23=113,0,IF(I23=115,0,IF(I23=118,0,IF(I23="",0,70)))) -> 0 | AU23: =IF(I23=0,0,IF(J23=2.25,0,IF(J23=2.5,0,IF(J23=3.25,0,80)))) -> 0 | AW23: =IF(K23=0,0,IF(K23="006",0,IF(K23="007",0,IF(K23="009",0,IF(K23="011",0,IF(K23="001",0,100)))))) -> 0 | AY23: 121 | BA23: 0 | BG23: 161 | BN23: *Jamb Species not stock | BU23: *Not a stock color | CC23: =IF(B23<>"",+CONCATENATE(BI23,BJ23,BK23,BL23,BM23,BN23,BO23,BP23,BQ23,BS23,BT23,BU23,BV23,BW23,BX23,BY23,BZ23,CA23),"- Invalid Line -") -> - Invalid Line - | CI23: =+Q23 -> 0 | CJ23: =+E23+H23 -> 0 | CK23: 0 | CL23: =IF(CQ23<>0,+CI23*$CL$7,0) -> 0 | CM23: 0 | CN23: 0 | CP23: 0
A24: 4 | D24: P | M24: =IF(M23="","",+M23) ->  | O24: =+BZ24 ->  | Q24: =+B24*C24/12 -> 0 | X24: =SUM(R24:W24) -> 0 | AA24: 0 | AH24: =IF(J24=2.25,"R ",IF(J24=2.5,"W ",IF(J24=3.25,"EW",""))) ->  | AI24: =+CONCATENATE(I24,AH24) ->  | AL24: =IF(D24="P",1,"Error") -> 1 | AR24: =IF(G24="Oak",0,IF(G24="Maple",0,IF(G24="Poplar",0,40))) -> 40 | AS24: =IF(B24<>0,IF(H24=0,0,IF(H24<1,50, IF(H24>6.5,51,0))),0) -> 0 | AT24: =IF(I24=113,0,IF(I24=115,0,IF(I24=118,0,IF(I24="",0,70)))) -> 0 | AU24: =IF(I24=0,0,IF(J24=2.25,0,IF(J24=2.5,0,IF(J24=3.25,0,80)))) -> 0 | AW24: =IF(K24=0,0,IF(K24="006",0,IF(K24="007",0,IF(K24="009",0,IF(K24="011",0,IF(K24="001",0,100)))))) -> 0 | AY24: 121 | BA24: 0 | BG24: 161 | BN24: *Jamb Species not stock | BU24: *Not a stock color | CC24: =IF(B24<>"",+CONCATENATE(BI24,BJ24,BK24,BL24,BM24,BN24,BO24,BP24,BQ24,BS24,BT24,BU24,BV24,BW24,BX24,BY24,BZ24,CA24),"- Invalid Line -") -> - Invalid Line - | CI24: =+Q24 -> 0 | CJ24: =+E24+H24 -> 0 | CK24: 0 | CL24: =IF(CQ24<>0,+CI24*$CL$7,0) -> 0 | CM24: 0 | CN24: 0 | CP24: 0
K25: ff | CC25: =+CONCATENATE(BI25,BJ25,BK25,BL25,BM25,BN25,BO25,BP25,BQ25,BS25,BT25,BU25,BV25,BW25,BX25,BY25,BZ25,CA25) -> 
E26: Type is (W)indow, (D)oor, (S)tool, (H)eader, (O)ctagon, or (C)ustom | K26: * - also accepts "001" for WDSH-001 | Q26: =SUM(Q9:Q25) -> 0 | X26: *Receive final total via email | AA26: =SUM(AA9:AA25) -> 0
A27: Orders in by 2:00 PM | L27: OTHER SPECIAL REQUIREMENTS:
A28: Lead Times (Expedited): | F28: Rush Charges: | K28: DELIVERY ADDRESS: | Q28: Confirmation Information | X28: *Email this Excel order form to orders email listed at top of this page
A29: 3 Days for pick & pull parts | F29: 2 Day = 75% Up Charge | H29: 1 Day = 100% up charge | K29: CONTACT: | Q29: Customer Acceptance Signature: ________________________
A30: 5 Days for finished windows using stock parts | F30: n/a | H30: n/a | K30: PHONE: | Q30: Sign & Fax to: | R30: 651.464.6191 | X30: Date: ______________
A31: 7 Days for finished windows with custom parts | F31: n/a | H31: n/a | K31: OTHER SPECIAL INFORMATION: | Q31: or Email to: | R31: orders@thewoodster.com
C32: 12.000 | Q32: THIS ORDER WILL BE ENTERED INTO WDI PRODUCTION
A33: =+Revisions!A28 -> v2002Feb-T1-Sales | C33: =+AF3 -> 0.500 | D33: =+AF2 -> w | Q33: SCHEDULE ON RECEIPT OF SIGNED CONFIRMATION
A38: =+A8 -> 1 | B38: =+B8 -> 2 | C38: =+C8 -> 3 | G38: =+G8 -> 4 | H38: 5 | I38: 6 | J38: 8 | K38: 9 | L38: 0 | M38: 10 | N38: 11 | O38: 0 | P38: 12 | Q38: 13 | R38: 14 | S38: 0 | T38: 0 | U38: 0 | V38: 0 | W38: 16 | X38: 17 | Y38: 0 | Z38: 0 | AA38: 16 | AB38: 0 | AC38: 19 | AD38: 20 | AE38: 0 | AF38: 0 | AG38: 0 | AH38: 8 | AI38: 6 | AJ38: 0 | AK38: 0 | AL38: 0 | AM38: 0 | AN38: 0
W39: $$/U.I: | X39: =+X40/6 -> 
G40: Stool calls out stool vs bottom casing | W40: $$/lft: | X40: =+X26/Q41 -> 
G41: Door eliminates bottom jamb & casing | Q41: =+Q26/6 -> 0 | R41: lft pricing | W41: $$/Window | X41: =+X26/I5 -> 
G42: Header calls out 3 sides of casing & cut to same reveal | W42: lft/Window | X42: =+Q41/I5 -> 
G43: Round calls out amounts at zero -> custom calculations
W44: =+#REF! ->  | X44: =+#REF! -> 
W45: =+#REF! ->  | X45: =+#REF! -> 
W46: =+#REF! ->  | X46: =+#REF! -> 

Sheet Colors_2020

Sheet Casings_2020

Sheet Stool_Template
A1: WDI Company - Window Box Stool template

Sheet Round_top_Template
A1: WDI Company - Window Round Top template

Sheet Round_top_Template_Extended
A1: WDI Company - Window Extended Round Top template

Sheet Octagon_Template
A1: Calculations for Octagon Windows | E1: Job Name: | F1: =+WDI_Standard_Order_Form!C2 -> 0 | I1: Ordered By: | J1: =+WDI_Standard_Order_Form!C4 -> 0 | X1: WDI Company - Window Box Order Form
E2: PO #: | F2: =+WDI_Standard_Order_Form!C3 -> 0 | I2: WDI Job # | J2: =+WDI_Standard_Order_Form!C5 -> -
B3: Fill in the green shaded area: | Y3: Job Name: | Z3: =+WDI_Standard_Order_Form!C2 -> 0
G4: Cut Angle is 22.5o | Y4: PO #: | Z4: =+WDI_Standard_Order_Form!C3 -> 0 | AM4: Box | AO4: Jamb | AQ4: Thickness | AV4: Diameter | AW4: Casing | AX4: Stop | BC4: Segment | BE4: PI= | BF4: =PI() -> 3.14159
B5: Information | C5: Key from chart @ right | Y5: Ordered By: | Z5: =+WDI_Standard_Order_Form!C4 -> 0 | AI5: Calcs: | AJ5: OS Box | AK5: Casing width | AM5: DIAMETER | AN5: MAX | AO5: SEGMENT LENGTH | AQ5: Jambs x 2 | AR5: IS Box | AS5: Reveal x 2: | AT5: IS Casing | AU5: Casing x 2: | AV5: OS Casing | AW5: SEGMENT LENGTH | AX5: SEGMENT LENGTH | AZ5: Radius | BA5: Circum. | BC5: Lengths
B6: Outside of Octagon box (A): | Y6: WDI Job # | Z6: =+WDI_Standard_Order_Form!C5 -> - | BE6: Radians of 22.5o | BF6: =RADIANS(22.5) -> 0.39270 | BG6: for octagonal cuts
B7: Outside of Long side Octagon box (B): | D7: =+C7-C6 -> 0 | Y7: Box Size (O.D.) | AA7: Opening Type | AB7: Casing | BE7: COS(22.5) | BF7: =COS(BF6) -> 0.92388
B8: Casing Width: | X8: # | Y8: Width | Z8: Height | AB8: Width
X9: =+WDI_Standard_Order_Form!A9 -> 1 | Y9: =+WDI_Standard_Order_Form!B9 -> 0 | Z9: =+WDI_Standard_Order_Form!C9 -> 0 | AA9: =+WDI_Standard_Order_Form!D9 -> W | AB9: =+WDI_Standard_Order_Form!J9 -> 0 | AI9: Line 1 | AJ9: =+C6 -> 0 | AK9: =+C8 -> 0 | AM9: =+AJ9 -> 0 | AN9: =SQRT((AO9/2)^2+AZ9^2)*2 -> 0 | AO9: =+(AM9/2)*$BF$11*2 -> 0 | AQ9: =-$C$24*2 -> (1.2500) | AR9: =+AQ9+AJ9 -> (1.2500) | AS9: =+$C$25*2 -> 0.3750 | AT9: =+AS9+AR9 -> (0.8750) | AU9: =+C8*2 -> 0 | AV9: =+AU9+AT9 -> (0.8750) | AW9: =+(AV9/2)*$BF$11*2 -> (0.362) | AX9: =+(AR9/2)*$BF$11*2 -> (0.518) | AZ9: =+AM9/2 -> 0 | BA9: =++AM9*$BF$4 -> 0 | BE9: SIN(22.5) | BF9: =SIN(BF6) -> 0.38268
X10: =+WDI_Standard_Order_Form!A10 -> 2 | Y10: =+WDI_Standard_Order_Form!B10 -> 0 | Z10: =+WDI_Standard_Order_Form!C10 -> 0 | AA10: =+WDI_Standard_Order_Form!D10 -> W | AB10: =+WDI_Standard_Order_Form!J10 -> 0
X11: =+WDI_Standard_Order_Form!A11 -> 3 | Y11: =+WDI_Standard_Order_Form!B11 -> 0 | Z11: =+WDI_Standard_Order_Form!C11 -> 0 | AA11: =+WDI_Standard_Order_Form!D11 -> W | AB11: =+WDI_Standard_Order_Form!J11 -> 0 | BE11: TAN(22.5) | BF11: =TAN(BF6) -> 0.41421
X12: =+WDI_Standard_Order_Form!A12 -> 4 | Y12: =+WDI_Standard_Order_Form!B12 -> 0 | Z12: =+WDI_Standard_Order_Form!C12 -> 0 | AA12: =+WDI_Standard_Order_Form!D12 -> W | AB12: =+WDI_Standard_Order_Form!J12 -> 0
X13: =+WDI_Standard_Order_Form!A13 -> 5 | Y13: =+WDI_Standard_Order_Form!B13 -> 0 | Z13: =+WDI_Standard_Order_Form!C13 -> 0 | AA13: =+WDI_Standard_Order_Form!D13 -> W | AB13: =+WDI_Standard_Order_Form!J13 -> 0 | BE13: COS = Adj / Hyp
B14: Jamb length (tip to tip): | C14: =+AO9 -> 0 | X14: =+WDI_Standard_Order_Form!A14 -> 6 | Y14: =+WDI_Standard_Order_Form!B14 -> 0 | Z14: =+WDI_Standard_Order_Form!C14 -> 0 | AA14: =+WDI_Standard_Order_Form!D14 -> W | AB14: =+WDI_Standard_Order_Form!J14 -> 0 | BE14: TAN = OP / Adj
B15: casing length (tip to tip): | C15: =+AW9 -> (0.3624) | X15: =+WDI_Standard_Order_Form!A15 -> 7 | Y15: =+WDI_Standard_Order_Form!B15 -> 0 | Z15: =+WDI_Standard_Order_Form!C15 -> 0 | AA15: =+WDI_Standard_Order_Form!D15 -> W | AB15: =+WDI_Standard_Order_Form!J15 -> 0 | BE15: SIN = OP/Hyp
B16: Stop length (tip to tip): | C16: =+AX9 -> (0.5178) | X16: =+WDI_Standard_Order_Form!A16 -> 8 | Y16: =+WDI_Standard_Order_Form!B16 -> 0 | Z16: =+WDI_Standard_Order_Form!C16 -> 0 | AA16: =+WDI_Standard_Order_Form!D16 -> W | AB16: =+WDI_Standard_Order_Form!J16 -> 0
X17: =+WDI_Standard_Order_Form!A17 -> 9 | Y17: =+WDI_Standard_Order_Form!B17 -> 0 | Z17: =+WDI_Standard_Order_Form!C17 -> 0 | AA17: =+WDI_Standard_Order_Form!D17 -> W | AB17: =+WDI_Standard_Order_Form!J17 -> 0
B18: Long side jamb length (pt to pt): | C18: =+C14+$D$7 -> 0 | X18: =+WDI_Standard_Order_Form!A18 -> 10 | Y18: =+WDI_Standard_Order_Form!B18 -> 0 | Z18: =+WDI_Standard_Order_Form!C18 -> 0 | AA18: =+WDI_Standard_Order_Form!D18 -> W | AB18: =+WDI_Standard_Order_Form!J18 -> 0
B19: Long side casing length (pt to pt): | C19: =+C15+$D$7 -> (0.3624) | X19: =+WDI_Standard_Order_Form!A19 -> 11 | Y19: =+WDI_Standard_Order_Form!B19 -> 0 | Z19: =+WDI_Standard_Order_Form!C19 -> 0 | AA19: =+WDI_Standard_Order_Form!D19 -> W | AB19: =+WDI_Standard_Order_Form!J19 -> 0
B20: Long side stop length (pt to pt): | C20: =+C16+$D$7 -> (0.5178) | X20: =+WDI_Standard_Order_Form!A21 -> 1 | Y20: =+WDI_Standard_Order_Form!B21 -> 0 | Z20: =+WDI_Standard_Order_Form!C21 -> 0 | AA20: =+WDI_Standard_Order_Form!D21 -> P | AB20: =+WDI_Standard_Order_Form!J21 -> 0
X21: =+WDI_Standard_Order_Form!A22 -> 2 | Y21: =+WDI_Standard_Order_Form!B22 -> 0 | Z21: =+WDI_Standard_Order_Form!C22 -> 0 | AA21: =+WDI_Standard_Order_Form!D22 -> P | AB21: =+WDI_Standard_Order_Form!J22 -> 0
X22: =+WDI_Standard_Order_Form!A23 -> 3 | Y22: =+WDI_Standard_Order_Form!B23 -> 0 | Z22: =+WDI_Standard_Order_Form!C23 -> 0 | AA22: =+WDI_Standard_Order_Form!D23 -> P | AB22: =+WDI_Standard_Order_Form!J23 -> 0
X23: =+WDI_Standard_Order_Form!A24 -> 4 | Y23: =+WDI_Standard_Order_Form!B24 -> 0 | Z23: =+WDI_Standard_Order_Form!C24 -> 0 | AA23: =+WDI_Standard_Order_Form!D24 -> P | AB23: =+WDI_Standard_Order_Form!J24 -> 0
B24: Jamb thickness: | C24: 0.6250
B25: Casing Reveal: | C25: 0.1875
B27: Cut @ 22.5 degree angle to Outside of casing length
D29: =SUM(D14:D28) -> 0
D30: =+D29/12 -> 0

Sheet Trapezoid_Template
A1: Trapezoid Calcs
Y2: Length | Z2: Angle | AA2: Angle | AB2: Hyp | AC2: Less Jamb
Y3: E | Z3: e | AA3: f | AB3: Length | AC3: Length
Y4: =+D4-B4 -> 0 | Z4: =DEGREES(ATAN(Y4/C4)) ->  | AA4: =90-Z4 ->  | AB4: =+SQRT(C4*C4+Y4*Y4) -> 0
B8: Cut top - glue & screw together

Sheet OSC_Calcs
A1: WDI Company - Window Box Order Form | G1: CALCULATIONS FOR OUTSIDE OF CASING / BOX SIZE | AX1: Window OSC = OSC | AY1: Door OSC = OSC | AZ1: Window OSC = OSC
B2: Job Name: | C2: =+#REF! ->  | M2: Enter in green areas only | AX2: -2 x casing | AY2: -1 x casing | AZ2: -1 x casing
B3: CRI PO #: | C3: =+#REF! ->  | N3: H=Header | AX3: -2 x reveal | AY3: -1 x reveal | AZ3: -1 x reveal
B4: Ordered By: | C4: =+#REF! ->  | AX4: +2 x jamb (5/8") | AY4: +1 x jamb (5/8") | AZ4: +1 x jamb (5/8")
B5: WDI Job # | C5: =+#REF! ->  | M5: Outside of Casing | AX5: = NET BOX | AY5: = NET BOX | AZ5: = NET BOX
B6: Box Size (O.D.) | D6: Type | E6: Jamb | F6: Jamb Depth | G6: Profile # | H6: Casing | I6: Casing | J6: Stop/Mull | K6: Casing | L6: Notes | N6: W | O6: D | P6: S | AY6: No Dado | AZ6: Dado bottom, check apron, mfg stool
A7: # | B7: Width | C7: Height | E7: Species | F7: From I.S of Window | G7: (WDI #113, #115, #118, etc.) | H7: Species | I7: Width | J7: Profile # | K7: Color | L7: Descriptions | M7: Width | N7: Height - Standard Window | O7: Height - Door - OSC to floor | P7: Height - OSC to bottom of stool | AU7: Reveal | AX7: =+N6 -> W | AY7: =+O6 -> D | AZ7: =+P6 -> S
A8: 1 | B8: 2 | C8: 3 | E8: 4 | F8: 5 | G8: 6 | H8: 7 | I8: 8 | J8: 9 | K8: 10 | L8: 11 | M8: 2 | N8: 3 | Q8: 12 | R8: 18 | S8: 19 | AS8: 20
A9: 1 | B9: =IF(+I9=0,"",+M9-2*I9-0.375+1.25) ->  | C9: =IF(I9="","",IF(+D9="W",+AX9,+IF(+D9="D",+AY9,+IF(+D9="S",+AZ9,"Err")))) ->  | D9: W | AU9: =3/16 -> 0.1875 | AX9: =+N9-(2*I9)-(2*AU9)+(2*0.625) -> 0.875 | AY9: =+O9-I9-AU9+0.625 -> 0.438 | AZ9: =+P9-I9-AU9+0.625 -> 0.438
A10: 2 | B10: =IF(+I10=0,"",+M10-2*I10-0.375+1.25) ->  | C10: =IF(I10="","",IF(+D10="W",+AX10,+IF(+D10="D",+AY10,+IF(+D10="S",+AZ10,"Err")))) ->  | D10: W | AU10: =+AU9 -> 0.1875 | AX10: =+N10-(2*I10)-(2*AU10)+(2*0.625) -> 0.875 | AY10: =+O10-I10-AU10+0.625 -> 0.438 | AZ10: =+P10-I10-AU10+0.625 -> 0.438
A11: 3 | D11: W | AU11: =+AU10 -> 0.1875 | AX11: 0.875 | AY11: 0.438 | AZ11: 0.438
A12: 4 | D12: W | AU12: 0.1875 | AX12: 0.875 | AY12: 0.438 | AZ12: 0.438
A13: 5 | D13: W | AU13: 0.1875 | AX13: 0.875 | AY13: 0.438 | AZ13: 0.438
A14: 6 | D14: W | AU14: 0.1875 | AX14: 0.875 | AY14: 0.438 | AZ14: 0.438
A15: 7 | D15: W | AU15: 0.1875 | AX15: 0.875 | AY15: 0.438 | AZ15: 0.438
A16: 8 | D16: W | AU16: 0.1875 | AX16: 0.875 | AY16: 0.438 | AZ16: 0.438
A17: 9 | D17: W | AU17: 0.1875 | AX17: 0.875 | AY17: 0.438 | AZ17: 0.438
A18: 10 | B18: =IF(+I18=0,"",+M18-2*I18-0.375+1.25) ->  | C18: =IF(I18="","",IF(+D18="W",+AX18,+IF(+D18="D",+AY18,+IF(+D18="S",+AZ18,"Err")))) ->  | D18: W | AU18: =+AU17 -> 0.1875 | AX18: =+N18-(2*I18)-(2*AU18)+(2*0.625) -> 0.875 | AY18: =+O18-I18-AU18+0.625 -> 0.438 | AZ18: =+P18-I18-AU18+0.625 -> 0.438
A19: 11 | D19: W | AU19: 0.1875 | AX19: 0.875 | AY19: 0.438 | AZ19: 0.438
A20: 12 | D20: W | AU20: 0.1875 | AX20: 0.875 | AY20: 0.438 | AZ20: 0.438
A21: 13 | D21: W | AU21: 0.1875 | AX21: 0.875 | AY21: 0.438 | AZ21: 0.438
A22: 14 | D22: W | AU22: 0.1875 | AX22: 0.875 | AY22: 0.438 | AZ22: 0.438
A23: 15 | D23: W | AU23: 0.1875 | AX23: 0.875 | AY23: 0.438 | AZ23: 0.438
D24: =+#REF! -> 
E28: Stool calls out stool vs bottom casing
E29: Door eliminates bottom jamb & casing
E30: Header calls out 3 sides of casing & cut to same reveal
E31: Round calls out amounts at zero -> custom calculations

Sheet Revisions (hidden)
A1: Date | B1: Description
A2: 2018-12-14 | B2: Change pricing to 2019 price base
A3: 2018-12-14 | B3: Add WDBB-001 to profile list
A4: 2018-12-14 | B4: Add WDBC-022 @ 1.875" to profile list
A5: 2018-12-20 | B5: Add CRI pricing
A7: 2018-12-14 | B7: Following changes for version Jan-B2 to implement in January
A8: 2018-12-31 | B8: Change colors to new color #'s
A9: 2018-12-31 | B9: Specs, colors, & profiles updated
A10: 2019-01-29 | B10: Color #50+ | C10: v1901Jan-B2-COLR
A11: 2019-03-26 | B11: moved to Master Template area on server so everyone uses same master | C11: v1903Mar-B2-COLR
A12: 2019-12-23 | B12: Changed to 2020 pricing, updates templates | C12: v2001Jan-T1-COLR
A13: 2019-12-31 | B13: Changed to 2020 pricing, updates templates | C13: v2001Jan-T2-COLR
A14: 2020-01-09 | B14: Changed to 2020 for Sales use | C14: v2001Jan-T2-Sales
A15: 2020-02-12 | B15: Color chips 2019 or newer | C15: v2002Feb-T1-Sales
A28: v2002Feb-T1-Sales | B28: <-- Version label for page #1
